bitfinex-derivatives/quotes_ETHF0:USTF0_20250709
["timestamp","ask_amount","ask_price","bid_price","bid_amount"]
[1752036313136,2.3521,2599.7,2599.6,0.76922]
[1752036319141,0.6598,2599.7,2599.6,0.76922]
[1752036319339,0.6598,2599.7,2599.6,2.07356541]
[1752036319540,1.6735,2599.7,2599.6,2.07356541]
[1752036320441,1.6735,2599.7,2599.6,0.76922]
[1752036320644,1.6735,2599.7,2599.6,2.07356541]
[1752036321541,1.6735,2599.7,2599.6,28.35256541]
[1752036324348,1.6735,2599.7,2599.6,2.07356541]
[1752036324548,1.6735,2599.7,2599.6,28.35256541]
[1752036325849,1.6735,2599.7,2599.6,2.07356541]
[1752036326051,1.6735,2599.7,2599.6,28.35256541]
[1752036326750,1.6735,2599.7,2599.6,27.04822]
[1752036327152,1.6735,2599.7,2599.6,28.35256541]
[1752036327943,1.6735,2599.7,2599.3,7.80586153]
[1752036328149,2.043,2599.7,2599.6,0.76923]
[1752036328448,2.043,2599.7,2599.6,27.04823]
[1752036328846,3.0567,2599.7,2599.6,27.04823]
[1752036329451,1.6735,2599.7,2599.6,27.04823]
[1752036329648,3.2078,2599.9,2599.6,26.279]
[1752036329853,3.8817,2599.9,2599.8,2.07351541]
[1752036330053,3.8817,2599.9,2599.8,28.44451541]
[1752036333048,4.8954,2599.9,2599.8,28.44451541]
[1752036334755,4.8954,2599.9,2599.8,2.07351541]
[1752036334955,4.8954,2599.9,2599.8,28.44051541]
[1752036335255,5.5391,2599.9,2599.8,28.44051541]
[1752036337457,5.5391,2599.9,2599.8,2.07351541]
[1752036337654,5.5391,2599.9,2599.8,28.43051541]
[1752036338354,5.5391,2599.9,2599.8,28.42751541]
[1752036339251,3.10044,2599.9,2599.8,26.354]
[1752036339450,3.10044,2599.9,2599.8,27.11717]
[1752036339650,3.10044,2599.9,2599.7,0.76918]
[1752036339850,1.0137,2599.8,2599.7,0.76918]
[1752036340154,4.5865,2600.1,2599.9,0.76914]
[1752036340155,1.0137,2600.0,2599.9,0.76914]
[1752036340350,1.6876,2600.0,2599.9,2.07348541]
[1752036342351,1.6876,2600.0,2599.9,28.41848541]
[1752036349261,0.6739,2600.0,2599.9,28.41848541]
[1752036351865,0.6739,2600.0,2599.9,29.04508541]
[1752036352066,1.6713,2600.2,2600.1,0.76908]
[1752036352365,2.8749551,2600.2,2600.1,27.08908]
[1752036352560,3.8520551,2600.2,2600.1,27.08908]
[1752036356771,3.8520551,2600.2,2600.1,26.32]
[1752036356973,7.0598551,2600.2,2600.1,26.32]
[1752036357175,7.0598551,2600.2,2600.1,27.08908]
[1752036357371,8.4080551,2600.2,2600.1,27.08908]
[1752036357566,9.1771051,2600.2,2600.1,27.08908]
[1752036357970,8.4080551,2600.2,2600.1,27.08908]
[1752036358674,8.4080551,2600.2,2600.1,0.76908]
[1752036360079,9.1771051,2600.2,2600.1,0.76908]
[1752036360574,0.76908,2600.1,2600.0,27.06609]
[1752036360876,5.2704351,2600.1,2600.0,27.06609]
[1752036361479,4.50205305,2600.1,2600.0,0.76909]
[1752036361672,4.50205305,2600.1,2600.0,27.05809]
[1752036362667,5.27113305,2600.1,2600.0,27.05809]
[1752036363876,4.50205305,2600.1,2600.0,27.05809]
[1752036366280,3.15855305,2600.1,2600.0,27.05809]
[1752036367178,1.6512,2600.1,2600.0,28.36243541]
[1752036367377,0.6741,2600.1,2600.0,28.36243541]
[1752036367582,1.6512,2600.1,2600.0,28.36243541]
[1752036370481,3.15872427,2600.1,2600.0,28.36243541]
[1752036370775,3.92780427,2600.1,2600.0,28.36245541]
[1752036371177,3.15872427,2600.1,2600.0,28.36245541]
[1752036371571,1.6512,2600.1,2600.0,28.36245541]
[1752036371775,3.15855075,2600.1,2600.0,28.36245541]
[1752036372383,3.92763075,2600.1,2600.0,28.36245541]
[1752036372579,7.13543075,2600.1,2600.0,26.289]
[1752036372978,7.13543075,2600.1,2600.0,27.05811]
[1752036373179,0.76912,2600.0,2599.9,0.76912]
[1752036373379,3.9769,2600.1,2600.0,0.76911]
[1752036373579,6.76735001,2600.1,2600.0,0.76911]
[1752036373779,7.44145001,2600.1,2600.0,0.76911]
[1752036374181,8.41855001,2600.1,2600.0,0.76911]
[1752036375687,7.64945001,2600.1,2600.0,0.76911]
[1752036375888,4.44165001,2600.1,2600.0,0.76911]
[1752036376084,5.21073001,2600.1,2600.0,0.76911]
[1752036377288,3.15865001,2600.1,2600.0,0.76911]
[1752036377593,3.15865001,2600.1,2600.0,1.41091]
[1752036378292,3.15865001,2600.1,2600.0,2.71525541]
[1752036379489,3.92773001,2600.1,2600.0,2.71525541]
[1752036379786,3.15865001,2600.1,2600.0,2.71525541]
[1752036381291,1.6512,2600.1,2600.0,2.71525541]
[1752036383491,0.6741,2600.1,2600.0,2.71525541]
[1752036384689,1.6709,2600.1,2600.0,2.71525541]
[1752036386788,3.17766384,2600.1,2600.0,2.71525541]
[1752036386993,1.6709,2600.1,2600.0,2.71525541]
[1752036390095,3.17758765,2600.1,2600.0,2.71525541]
[1752036390493,1.6709,2600.1,2600.0,2.71525541]
[1752036396399,1.46326,2600.2,2600.1,0.76908]
[1752036396599,2.96996564,2600.2,2600.1,0.76908]
[1752036397500,2.20090564,2600.2,2600.1,0.76908]
[1752036397798,2.96995564,2600.2,2600.1,0.76908]
[1752036398301,2.20090564,2600.2,2600.1,0.76908]
[1752036398499,3.86720564,2600.2,2600.1,0.76908]
[1752036398800,3.86720564,2600.2,2600.1,1.81052198]
[1752036401801,4.63625564,2600.2,2600.1,1.81052198]
[1752036406904,3.86720564,2600.2,2600.1,1.81052198]
[1752036414408,2.20090564,2600.2,2600.1,1.81052198]
[1752036415011,2.96995564,2600.2,2600.1,0.76908]
[1752036416514,4.59915564,2600.2,2600.1,0.76908]
[1752036419620,0.76908,2600.1,2600.0,1.81053198]
[1752036419911,5.24738564,2600.1,2600.0,1.81053198]
[1752036420112,4.30328564,2600.1,2600.0,1.81053198]
[1752036420406,5.24798283,2600.1,2600.0,1.81053198]
[1752036424309,8.45578283,2600.1,2600.0,1.81053198]
[1752036426217,5.24798283,2600.1,2600.0,1.81053198]
[1752036426418,4.47890283,2600.1,2600.0,1.81053198]
[1752036426616,5.24798283,2600.1,2600.0,1.81053198]
[1752036426816,4.47890283,2600.1,2600.0,1.81053198]
[1752036428616,5.24798283,2600.1,2600.0,1.81053198]
[1752036430212,5.24798283,2600.1,2600.0,1.81055198]
[1752036430417,4.47890283,2600.1,2599.8,1.72714198]
[1752036430613,2.08342,2600.0,2599.9,0.76914]
[1752036430817,3.71262,2600.0,2599.9,0.76914]
[1752036432413,2.9435,2600.0,2599.9,0.76914]
[1752036432618,1.6292,2600.0,2599.9,1.81058198]
[1752036434518,0.6851,2600.0,2599.9,1.81058198]
[1752036435518,1.6292,2600.0,2599.9,1.81058198]
[1752036440817,2.39831,2600.0,2599.9,1.81058198]
[1752036441226,1.6292,2600.0,2599.9,1.81058198]
[1752036442824,1.6292,2600.0,2599.9,0.76914]
[1752036443026,1.6292,2600.0,2599.9,1.81058198]
[1752036447627,0.6851,2600.0,2599.9,1.81058198]
[1752036447822,0.9924,2600.2,2600.1,0.76908]
[1752036448022,1.657,2600.2,2600.1,1.81052198]
[1752036448227,3.16162936,2600.2,2600.1,1.81052198]
[1752036448427,3.16162936,2600.2,2600.1,2.44482198]
[1752036451227,2.16922936,2600.2,2600.1,2.44482198]
[1752036451428,1.50462936,2600.2,2600.1,2.44482198]
[1752036451626,0.9924,2600.5,2600.4,0.76899]
[1752036451822,2.4967592,2600.5,2600.4,1.81043198]
[1752036452030,3.1613592,2600.5,2600.4,1.81043198]
[1752036454034,2.1689592,2600.5,2600.4,1.81043198]
[1752036455228,2.16816462,2600.5,2600.4,2.55903858]
[1752036455636,3.16056462,2600.5,2600.4,2.55903858]
[1752036455938,2.16816462,2600.5,2600.4,2.55903858]
[1752036456540,3.16056462,2600.5,2600.4,2.55903858]
[1752036456736,3.16056462,2600.5,2600.4,1.81043198]
[1752036457540,1.50356462,2600.5,2600.4,1.81043198]
[1752036457743,3.2078,2600.7,2600.6,0.76894]
[1752036458038,4.70940484,2600.7,2600.6,28.06538198]
[1752036458238,5.37400484,2600.7,2600.6,28.06538198]
[1752036458942,1.50160484,2600.7,2600.6,28.06538198]
[1752036459741,0.9924,2600.9,2600.8,0.76888]
[1752036459935,3.15776584,2600.9,2600.8,27.02288]
[1752036460542,3.15776584,2600.9,2600.8,28.06432198]
[1752036460937,3.15776584,2600.9,2600.8,28.32377387]
[1752036461539,2.16536584,2600.9,2600.8,28.32377387]
[1752036461736,1.50076584,2600.9,2600.8,28.32377387]
[1752036464444,0.99816879,2601.1,2601.0,0.76882]
[1752036464646,2.49248778,2601.1,2601.0,28.32171387]
[1752036464847,3.15708778,2601.1,2601.0,28.31971387]
[1752036466249,1.66276879,2601.1,2601.0,28.31971387]
[1752036467057,2.43155879,2601.1,2601.0,28.31971387]
[1752036467350,1.66276879,2601.1,2601.0,28.31971387]
[1752036468760,0.00576879,2601.1,2601.0,28.31971387]
[1752036468960,0.68556879,2601.1,2601.0,28.31971387]
[1752036470562,1.67126879,2601.1,2601.0,28.31971387]
[1752036471863,0.68556879,2601.1,2601.0,28.31971387]
[1752036474359,0.00576879,2601.1,2601.0,28.31971387]
[1752036474555,0.68556879,2601.1,2601.0,28.31971387]
[1752036476165,0.00576879,2601.1,2601.0,28.31971387]
[1752036476365,0.00576879,2601.1,2601.0,31.52751387]
[1752036476857,0.68556879,2601.1,2601.0,31.52751387]
[1752036477364,0.00576879,2601.1,2601.0,31.52751387]
[1752036477562,1.3768,2601.5,2601.0,31.52751387]
[1752036477563,59.60908585,2602.1,2601.4,0.7687]
[1752036477762,1.3302,2602.0,2601.6,1.30089387]
[1752036477958,2.013,2602.0,2601.9,0.76855]
[1752036478161,2.6928,2602.0,2601.9,0.76855]
[1752036478566,2.3483,2602.0,2601.9,0.76855]
[1752036478767,2.3483,2602.0,2601.9,2.06944387]
[1752036479069,3.11682,2602.0,2601.9,1.30089387]
[1752036479267,3.6045,2602.0,2601.9,1.30089387]
[1752036479462,4.37302,2602.0,2601.9,1.30089387]
[1752036479662,3.6045,2602.0,2601.9,1.30089387]
[1752036479862,3.6045,2602.0,2601.9,2.06944387]
[1752036480366,4.37302,2602.0,2601.9,2.06944387]
[1752036480567,3.6045,2602.0,2601.9,2.06944387]
[1752036480867,4.37302,2602.0,2601.9,2.06944387]
[1752036481066,3.6045,2602.0,2601.9,2.06944387]
[1752036481568,3.6045,2602.0,2601.9,0.76855]
[1752036481970,4.37302,2602.0,2601.9,0.76855]
[1752036483370,3.6045,2602.0,2601.9,0.76855]
[1752036484267,4.37302,2602.0,2601.9,0.76855]
[1752036484961,3.6045,2602.0,2601.9,0.76855]
[1752036486464,3.6045,2602.0,2601.6,2.60438]
[1752036486465,0.76858,2601.8,2601.7,26.24]
[1752036486664,2.43408,2601.8,2601.7,26.24]
[1752036487272,2.43408,2601.8,2601.7,27.00861]
[1752036488674,0.76864,2601.6,2601.5,0.76866]
[1752036488873,1.6655,2601.6,2601.2,4.50869387]
[1752036489170,0.76873,2601.3,2601.2,3.2078]
[1752036489373,0.76876,2601.2,2601.1,1.30089387]
[1752036489574,3.08706,2601.2,2601.1,1.30089387]
[1752036489873,4.44366,2601.2,2601.1,28.30966387]
[1752036490073,4.44366,2601.2,2601.1,1.30089387]
[1752036490269,4.44366,2601.2,2601.1,26.239]
[1752036490877,4.44366,2601.2,2601.1,27.00779]
[1752036491375,3.6749,2601.2,2601.1,0.76879]
[1752036491577,4.44366,2601.2,2601.1,0.76879]
[1752036491979,4.44366,2601.2,2601.0,27.0078]
[1752036492182,1.3421,2601.1,2601.0,27.0078]
[1752036492477,0.76882,2601.0,2600.9,5.27752387]
[1752036492667,1.44862,2601.0,2600.9,31.51852387]
[1752036492871,2.43432,2601.0,2600.9,31.51852387]
[1752036493078,1.6655,2601.0,2600.9,31.51852387]
[1752036493278,1.6655,2601.0,2600.9,5.27752387]
[1752036493574,2.43432,2601.0,2600.9,5.27752387]
[1752036493970,2.43432,2601.0,2600.9,30.74969387]
[1752036494278,1.6655,2601.0,2600.9,31.51854387]
[1752036495676,1.75446,2601.3,2600.9,30.74969387]
[1752036495876,0.76873,2601.3,2601.2,1.30089387]
[1752036496078,1.45913,2601.3,2601.2,2.06965387]
[1752036496278,1.45913,2601.3,2601.1,0.76877]
[1752036496478,1.45913,2601.3,2601.2,1.30089387]
[1752036496874,0.6904,2601.3,2601.2,2.06965387]
[1752036497380,0.9427,2601.6,2601.5,0.76866]
[1752036497580,0.76867,2601.5,2601.4,2.06958387]
[1752036497782,1.3267,2601.5,2601.4,2.06958387]
[1752036498082,5.4772,2601.5,2601.4,2.06958387]
[1752036498678,4.8409,2601.5,2601.4,2.06958387]
[1752036498882,5.60957,2601.5,2601.2,27.54289387]
[1752036499075,1.7114,2601.4,2601.3,26.254]
[1752036499275,2.4018,2601.4,2601.3,26.254]
[1752036499474,3.0188,2601.4,2601.2,2.06963387]
[1752036499678,0.9427,2601.3,2601.2,0.76874]
[1752036499878,3.0188,2601.3,2601.2,0.76874]
[1752036500481,1.6331,2601.3,2601.2,2.06963387]
[1752036502081,0.6904,2601.3,2601.2,2.06963387]
[1752036505788,4.1505,2601.5,2601.4,0.7687]
[1752036505988,4.8409,2601.5,2601.4,2.06959387]
[1752036507383,3.8982,2601.5,2601.4,2.06959387]
[1752036510386,3.2078,2601.5,2601.4,2.06959387]
[1752036510789,3.8982,2601.5,2601.4,2.06959387]
[1752036513393,4.8409,2601.5,2601.4,2.06959387]
[1752036517996,1.6216,2601.9,2601.8,0.76858]
[1752036518194,2.4399211,2601.9,2601.8,0.76858]
[1752036518390,3.1303211,2601.9,2601.8,0.76858]
[1752036519296,1.6331,2601.9,2601.8,0.76858]
[1752036521686,1.6049,2602.1,2602.0,0.76852]
[1752036521885,3.79144975,2602.1,2602.0,2.06941387]
[1752036522192,3.79144975,2602.1,2602.0,0.76852]
[1752036523097,2.2953,2602.1,2602.0,0.76852]
[1752036527797,2.2953,2602.1,2602.0,2.06941387]
[1752036530095,2.2953,2602.1,2602.0,0.76852]
[1752036530300,2.2953,2602.1,2602.0,2.06941387]
[1752036534499,3.6042,2602.1,2602.0,2.06941387]
[1752036543412,2.2953,2602.1,2602.0,2.06941387]
[1752036544914,2.2953,2602.1,2602.0,0.76852]
[1752036549315,2.2953,2602.1,2602.0,2.06941387]
[1752036560925,2.2953,2602.1,2602.0,0.76852]
[1752036561124,2.2953,2602.1,2602.0,2.06941387]
[1752036565827,2.2953,2602.1,2602.0,0.76852]
[1752036567627,3.06379,2602.1,2602.0,0.76852]
[1752036567825,2.2953,2602.1,2602.0,0.76852]
[1752036572829,2.2953,2602.1,2602.0,1.80843022]
[1752036578930,3.607,2602.1,2602.0,1.80843022]
[1752036582938,2.2953,2602.1,2602.0,1.80843022]
[1752036589539,4.55559084,2602.1,2601.7,1.03991022]
[1752036589743,1.49178084,2602.0,2601.9,0.76854]
[1752036590038,4.57478084,2602.0,2601.9,1.80845022]
[1752036591241,3.083,2602.0,2601.9,1.80845022]
[1752036592936,3.85152,2602.0,2601.9,1.03991022]
[1752036593138,7.05932,2602.0,2601.9,1.03991022]
[1752036593439,0.76859,2601.8,2601.7,1.80851022]
[1752036593639,1.7179,2601.8,2601.7,1.80851022]
[1752036593838,2.48648,2601.8,2601.7,1.80851022]
[1752036594037,4.47898,2601.8,2601.7,1.80851022]
[1752036594339,3.7104,2601.8,2601.7,1.80851022]
[1752036595635,4.47898,2601.8,2601.7,1.80851022]
[1752036595937,3.7104,2601.8,2601.7,1.80851022]
[1752036596240,4.47898,2601.8,2601.7,1.80851022]
[1752036597035,3.7104,2601.8,2601.7,1.80851022]
[1752036598138,4.47898,2601.8,2601.7,1.80851022]
[1752036598841,4.47898,2601.8,2601.7,1.03991022]
[1752036599041,4.47898,2601.8,2601.7,1.80852022]
[1752036599243,2.412,2601.8,2601.7,1.80852022]
[1752036601345,3.18058,2601.8,2601.7,1.80852022]
[1752036601944,2.412,2601.8,2601.7,1.80852022]
[1752036603446,0.6753,2601.8,2601.7,1.80852022]
[1752036604043,1.7179,2601.8,2601.7,1.80852022]
[1752036605049,0.6753,2601.8,2601.7,1.80852022]
[1752036605248,1.7179,2601.8,2601.7,1.80852022]
[1752036605443,1.7179,2601.8,2601.7,1.42491]
[1752036607051,1.0426,2602.2,2602.1,0.76849]
[1752036607250,3.20943385,2602.2,2602.1,1.80840022]
[1752036608552,1.7179,2602.2,2602.1,1.80840022]
[1752036608751,2.4031,2602.2,2602.1,1.80840022]
[1752036610347,3.17156,2602.2,2602.1,1.03991022]
[1752036611353,2.4031,2602.2,2602.1,1.03991022]
[1752036611752,2.4031,2602.2,2602.1,1.80840022]
[1752036612252,4.66261922,2602.2,2602.1,1.03991022]
[1752036612451,4.66261922,2602.2,2602.1,1.80840022]
[1752036612652,6.01831922,2602.2,2602.1,1.80840022]
[1752036613255,5.24985922,2602.2,2602.1,1.80840022]
[1752036613448,6.01831922,2602.2,2602.1,1.80840022]
[1752036615851,6.01831922,2602.2,2602.1,0.76849]
[1752036617555,0.76849,2602.1,2602.0,1.80841022]
[1752036617756,1.5869,2602.1,2602.0,1.80841022]
[1752036618258,2.35539,2602.1,2602.0,1.80841022]
[1752036618658,1.5869,2602.1,2602.0,1.80841022]
[1752036619358,2.35539,2602.1,2602.0,1.80841022]
[1752036620156,0.76852,2602.0,2601.7,0.6563]
[1752036620362,4.93232,2602.0,2601.9,1.80846022]
[1752036620662,2.35542,2602.0,2601.9,1.80846022]
[1752036621164,1.5869,2602.0,2601.9,1.80846022]
[1752036621365,2.35542,2602.0,2601.9,1.80846022]
[1752036621967,1.5869,2602.0,2601.9,1.80846022]
[1752036622960,0.6309,2602.0,2601.9,1.80846022]
[1752036626068,1.5869,2602.0,2601.9,1.80846022]
[1752036626471,0.6309,2602.0,2601.9,1.80846022]
[1752036631276,1.5869,2602.0,2601.9,1.80846022]
[1752036635578,2.35542,2602.0,2601.9,1.80846022]
[1752036635772,2.98112,2602.0,2601.9,1.80846022]
[1752036636178,2.2126,2602.0,2601.9,1.80846022]
[1752036644383,2.2126,2602.0,2601.9,1.70256022]
[1752036644879,2.98112,2602.0,2601.9,1.03991022]
[1752036645173,4.30612,2602.0,2601.9,1.03991022]
[1752036646382,4.30612,2602.0,2601.9,1.80846022]
[1752036647379,4.30612,2602.0,2601.9,1.03991022]
[1752036648385,4.30612,2602.0,2601.9,1.80846022]
[1752036649087,3.5376,2602.0,2601.9,1.80846022]
[1752036651788,2.2126,2602.0,2601.9,1.80846022]
[1752036651985,2.98112,2602.0,2601.9,1.80846022]
[1752036652289,2.98112,2602.0,2601.9,1.03991022]
[1752036652587,2.98112,2602.0,2601.9,1.80846022]
[1752036652888,2.98112,2602.0,2601.9,1.03991022]
[1752036653389,2.2126,2602.0,2601.9,1.80846022]
[1752036655183,2.98112,2602.0,2601.9,1.03991022]
[1752036655384,3.08952,2602.0,2601.9,1.80846022]
[1752036655584,4.37932,2602.0,2601.9,1.80846022]
[1752036656190,4.37932,2602.0,2601.9,1.03991022]
[1752036656390,4.37932,2602.0,2601.9,1.80846022]
[1752036656590,4.37932,2602.0,2601.9,1.03991022]
[1752036657385,0.76855,2601.9,2601.8,1.80848022]
[1752036657599,2.9848,2601.9,2601.8,0.76858]
[1752036657985,0.76858,2601.8,2601.7,2.46480022]
[1752036658287,2.37838,2601.8,2601.7,2.46480022]
[1752036659091,1.6098,2601.8,2601.7,2.46480022]
[1752036659492,2.37838,2601.8,2601.7,2.46480022]
[1752036661090,1.6098,2601.8,2601.7,2.46480022]
[1752036663092,0.1084,2602.0,2601.9,0.76855]
[1752036663288,3.21049639,2602.0,2601.9,1.80846022]
[1752036663893,3.97901639,2602.0,2601.9,1.80846022]
[1752036664793,3.97901639,2602.0,2601.9,2.06849088]
[1752036665195,3.21049639,2602.0,2601.9,2.06849088]
[1752036666596,1.60069639,2602.0,2601.9,2.06849088]
[1752036666791,2.25569639,2602.0,2601.9,2.06849088]
[1752036668896,0.7634,2602.0,2601.9,2.06849088]
[1752036673596,1.7182,2602.0,2601.9,2.06849088]
[1752036675303,2.48672,2602.0,2601.9,2.06849088]
[1752036675499,1.7182,2602.0,2601.9,2.06849088]
[1752036680507,2.48672,2602.0,2601.9,2.06849088]
[1752036683204,1.7182,2602.0,2601.9,2.06849088]
[1752036684905,1.7182,2602.0,2601.9,1.8084466]
[1752036688310,2.48672,2602.0,2601.9,1.8084466]
[1752036688511,1.7182,2602.0,2601.9,1.8084466]
[1752036690007,0.7634,2602.0,2601.9,1.8084466]
[1752036690813,0.1084,2602.0,2601.9,1.8084466]
[1752036691413,0.7916,2602.0,2601.9,1.8084466]
[1752036695411,1.8056,2602.0,2601.9,0.76855]
[1752036695712,1.8056,2602.0,2601.9,1.8084466]
[1752036696713,2.57412,2602.0,2601.9,1.8084466]
[1752036697416,1.8056,2602.0,2601.9,1.8084466]
[1752036697719,2.57412,2602.0,2601.9,1.8084466]
[1752036698114,1.8056,2602.0,2601.9,1.8084466]
[1752036698718,2.57412,2602.0,2601.9,1.8084466]
[1752036699018,1.8056,2602.0,2601.9,1.8084466]
[1752036703923,3.0585,2602.0,2601.9,1.8084466]
[1752036706725,3.82702,2602.0,2601.9,1.8084466]
[1752036707227,3.82704,2602.0,2601.9,1.0398966]
[1752036708434,3.82704,2602.0,2601.9,1.8084466]
[1752036708636,3.82704,2602.0,2601.9,1.0398966]
[1752036708837,3.82704,2602.0,2601.9,1.8084466]
[1752036709036,7.03484,2602.0,2601.9,1.8084466]
[1752036709832,7.03484,2602.0,2601.9,1.0398966]
[1752036714440,5.33764,2602.0,2601.9,1.0398966]
[1752036716441,6.98444,2602.0,2601.9,1.0398966]
[1752036719138,5.73154,2602.0,2601.9,1.0398966]
[1752036719534,4.963,2602.0,2601.9,1.0398966]
[1752036720243,4.963,2602.0,2601.9,1.8084466]
[1752036720444,5.73152,2602.0,2601.9,1.8084466]
[1752036722550,5.73152,2602.0,2601.9,1.0398966]
[1752036722747,0.76855,2601.9,2601.8,1.0398966]
[1752036722943,3.3162,2602.0,2601.9,0.76855]
[1752036723149,3.9473,2602.0,2601.9,0.76855]
[1752036729849,4.963,2602.0,2601.9,0.76855]
[1752036732159,3.9473,2602.0,2601.9,0.76855]
[1752036733956,0.7395,2602.0,2601.9,0.76855]
[1752036735056,1.7552,2602.0,2601.9,0.76855]
[1752036736657,0.7395,2602.0,2601.9,0.76855]
[1752036738460,1.7631,2602.0,2601.9,1.8084466]
[1752036739257,1.7631,2602.0,2601.8,1.8084566]
[1752036739459,1.6686,2601.9,2601.8,1.8084566]
[1752036739662,2.3193,2601.9,2601.8,1.8084566]
[1752036744864,1.2957,2601.9,2601.8,1.8084566]
[1752036745063,0.6507,2601.9,2601.8,1.8084566]
[1752036748267,0.1084,2602.0,2601.9,0.76855]
[1752036748468,0.7591,2602.0,2601.9,0.76855]
[1752036749063,1.7827,2602.0,2601.9,0.76855]
[1752036757881,1.7827,2602.0,2601.9,1.8084466]
[1752036758378,3.1142,2602.0,2601.9,1.8084466]
[1752036771293,3.1142,2602.0,2601.9,0.76855]
[1752036776793,1.7827,2602.0,2601.9,0.76855]
[1752036801222,2.55124,2602.0,2601.8,0.76855]
[1752036801424,0.7591,2602.0,2601.9,0.76855]
[1752036802021,2.9724,2602.0,2601.9,0.76855]
[1752036802322,3.74092,2602.0,2601.8,1.8084566]
[1752036802622,2.0124,2602.0,2601.9,0.76855]
[1752036803221,2.9724,2602.0,2601.9,0.76855]
[1752036807825,2.9724,2602.0,2601.7,4.57637029]
[1752036808118,2.2984,2601.9,2601.8,1.8084766]
[1752036808323,2.9543,2601.9,2601.8,1.8084766]
[1752036809123,1.6159,2601.9,2601.8,1.8084766]
[1752036814028,1.6159,2601.9,2601.8,1.0398966]
[1752036814328,1.6159,2601.9,2601.8,1.8084766]
[1752036816228,2.2726,2601.9,2601.8,1.8084766]
[1752036816823,3.04115,2601.9,2601.7,0.76859]
[1752036817024,2.08115,2601.9,2601.8,1.0398966]
[1752036817227,4.37505,2601.9,2601.8,1.8084766]
[1752036819331,3.6065,2601.9,2601.8,1.8084766]
[1752036821335,2.2726,2601.9,2601.8,1.8084766]
[1752036822936,0.6559,2601.9,2601.8,1.8084766]
[1752036823930,1.6159,2601.9,2601.8,1.8084766]
[1752036832438,0.6559,2601.9,2601.8,1.8084766]
[1752036832741,1.6285,2601.9,2601.8,1.8084766]
[1752036832939,0.6559,2601.9,2601.8,1.8084766]
[1752036833540,0.6559,2601.9,2601.8,3.1676766]
[1752036838444,0.1084,2602.0,2601.9,0.76855]
[1752036838645,0.1084,2602.0,2601.9,26.87755]
[1752036838847,0.1084,2602.0,2601.9,27.51455]
[1752036840550,1.7658,2602.0,2601.9,27.51455]
[1752036847360,2.53432,2602.0,2601.9,27.51455]
[1752036848263,1.7658,2602.0,2601.9,27.51455]
[1752036848964,1.7658,2602.0,2601.9,26.87755]
[1752036849165,3.1348,2602.0,2601.9,26.87755]
[1752036851169,3.90332,2602.0,2601.9,26.87755]
[1752036851363,3.1348,2602.0,2601.9,26.87755]
[1752036851563,3.1348,2602.0,2601.9,27.9124466]
[1752036852870,1.7658,2602.0,2601.9,27.9124466]
[1752036854472,0.7932,2602.0,2601.9,27.9124466]
[1752036856671,0.7932,2602.0,2601.9,28.5473466]
[1752036861779,0.7932,2602.0,2601.9,27.50745]
[1752036861976,0.7932,2602.0,2601.9,28.5473466]
[1752036863575,1.8176,2602.0,2601.9,28.5473466]
[1752036864379,0.7932,2602.0,2601.9,28.5473466]
[1752036864977,0.1084,2602.0,2601.9,28.5473466]
[1752036865174,0.1084,2602.0,2601.9,29.8318466]
[1752036870189,0.7698,2602.0,2601.9,29.8318466]
[1752036870490,0.7698,2602.0,2601.9,28.5473466]
[1752036871291,0.7698,2602.0,2601.9,33.12371689]
[1752036872290,0.7698,2602.0,2601.9,28.5473466]
[1752036873489,1.7942,2602.0,2601.9,28.5473466]
[1752036873893,0.7698,2602.0,2601.9,28.5473466]
[1752036874693,1.7942,2602.0,2601.9,28.5473466]
[1752036874885,2.4816,2602.0,2601.9,28.5473466]
[1752036882296,2.4816,2602.0,2601.9,28.5353466]
[1752036886499,1.4572,2602.0,2601.9,28.5353466]
[1752036887599,2.4846,2602.0,2601.9,28.5353466]
[1752036888492,1.4572,2602.0,2601.9,28.5353466]
[1752036889198,2.4846,2602.0,2601.9,28.5353466]
[1752036889500,1.4572,2602.0,2601.9,28.5353466]
[1752036890097,2.4846,2602.0,2601.9,28.5353466]
[1752036890500,1.4572,2602.0,2601.9,28.5353466]
[1752036892301,1.4572,2602.0,2601.9,33.11171689]
[1752036892498,3.2078,2602.5,2602.4,0.7684]
[1752036892499,4.2352,2602.5,2602.4,0.7684]
[1752036892699,0.686,2602.4,2602.3,26.85742]
[1752036892895,5.18359049,2602.4,2602.3,26.85742]
[1752036893500,5.18359049,2602.4,2602.3,26.85743]
[1752036893901,5.18359049,2602.4,2602.3,27.8973266]
[1752036895008,5.18359049,2602.4,2602.3,1.8083266]
[1752036897111,5.18359049,2602.4,2602.2,26.087]
[1752036897312,1.3372,2602.4,2602.3,1.8083266]
[1752036897610,2.80808778,2602.4,2602.3,1.8083266]
[1752036897912,3.83548778,2602.4,2602.3,1.8083266]
[1752036898506,0.76843,2602.3,2602.0,1.0398966]
[1752036898705,0.6512,2602.1,2602.0,0.76852]
[1752036898906,2.44712,2602.1,2602.0,0.76852]
[1752036899107,3.07682,2602.1,2602.0,0.76852]
[1752036899513,3.07682,2602.1,2601.9,26.85453]
[1752036899709,0.76852,2602.0,2601.9,26.85453]
[1752036900012,2.44712,2602.0,2601.9,26.85453]
[1752036900510,1.6786,2602.0,2601.9,26.85453]
[1752036901010,1.6786,2602.0,2601.9,25.41317234]
[1752036901206,1.6786,2602.0,2601.9,0.76853]
[1752036902003,1.6786,2602.0,2601.8,29.37258006]
[1752036902209,0.6512,2602.0,2601.9,0.76854]
[1752036902713,1.6786,2602.0,2601.9,0.76854]
[1752036904016,1.6786,2602.0,2601.8,27.1258966]
[1752036904516,1.6786,2602.0,2601.9,0.76854]
[1752036904816,2.44713,2602.0,2601.8,27.8944566]
[1752036905014,2.44713,2602.0,2601.8,26.45305822]
[1752036905318,1.6786,2602.0,2601.9,1.8084466]
[1752036907121,1.6786,2602.0,2601.9,0.76855]
[1752036907323,1.6786,2602.0,2601.9,1.8084466]
[1752036908119,1.6786,2602.0,2601.9,1.0398966]
[1752036908321,1.6786,2602.0,2601.9,1.8084466]
[1752036909018,1.6786,2602.0,2601.8,25.55391228]
[1752036909222,0.6512,2602.0,2601.9,1.8084466]